Cogmind - Beta 17 @@@ ROGUE MODE // 2026.08.22 @ 00:51:47 Player: OBLIQUE Result: Destroyed by P-70 Sage with High-powered Shock Rifle Performance ------------- Evolutions (6) 3000 Regions Visited (11) 2200 Robots Destroyed (154) 770 Value Destroyed (6573) 6573 Prototype IDs (43) 860 Alien Tech Used (0) 0 Bonus (2997) 2997 TOTAL SCORE: 16400 Bonus ------- High Alert Combat Kills 1483 Follower Combat Kills 437 Entered Garrisons 200 Used RIF Installer 500 Entered DSFs 500 Friendly Fire -123 Cogmind --------- Core Integrity 0/1150 Matter 300/300 Energy 100/100 System Corruption 16% Temperature Cool (0) Movement Core (350) Ox6 Location -4/Factory Parts ------- > --- POWER (2) -------- (None) > --- PROPULSION (6) --- (None) > --- UTILITY (7) ------ Scrap Engine Large Storage Unit > --- WEAPON (4) ------- (None) > --- INVENTORY (15) --- Advanced Heat Sink Energy Well (350) Quantum Capacitor Quantum Capacitor Authchip [R/Combat] Authchip [Propulsion] Relay Coupler [NC] (35) Relay Coupler [NC] (30) Improved Datajack Peak State ------------ > --- POWER ------------ Multi-Antimatter Reactor > --- PROPULSION ------- Wheeled Myomer-Carbon Exoskeleton > --- UTILITY ---------- Armored Scrap Engine Advanced Cooling System Large Storage Unit Core Analyzer Quantum Capacitor > --- WEAPON ----------- Accelerated Coil Construct/G KE Gauss Construct/G Directed Wave Construct/G Kinetic Gauss Construct/C > --- INVENTORY -------- Advanced Heat Sink Energy Well Quantum Capacitor Quantum Capacitor Advanced Weapon Cycler Advanced Weapon Cycler Authchip [R/Combat] Authchip [Propulsion] Relay Coupler [NC] Relay Coupler [NC] Fusion Bomb Launcher Fusion Bomb Launcher Improved Datajack [Rating: 117] Favorites ----------- Power Constructs Engine Improved Ion Engine Reactor Constructs Propulsion Compact Wheel Treads Light Treads Wheel Compact Wheel Utility Large Storage Unit Device Improved Heat Sink Storage Large Storage Unit Processor Core Analyzer Hackware Hacking Suite Protection Hardened Heavy Armor Plating Weapon Constructs Energy Gun Constructs Energy Cannon Advanced Beam Cannon Ballistic Gun Assault Rifle Ballistic Cannon Constructs Launcher Subdweller Shrapnel Launcher Slashing Weapon Power Sword Special Melee Weapon Improved Datajack Build | -11 -10 -10 -10 -8 -7 -7 -7 -5 -5 -5 -4 ------- Run | Yrd Mat Min Sub Mat Fac Sto Rec Fac DSF Gar Fac Slots Evolved 12 | . . . . 4 2 . . 4 . . 2 Power 1 | . . . . . . . . 1 . . . Propulsion 4 | . . . . 1 . . . 2 . . 1 Utility 5 | . . . . 3 2 . . . . . . Weapon 2 | . . . . . . . . 1 . . 1 Parts Attached 90 | 6 6 4 15 24 8 10 3 . 3 6 5 Power 10 | 1 1 1 3 2 1 1 . . . . . Engine 10 | 1 1 1 3 2 1 1 . . . . . Core . | . . . . . . . . . . . . Reactor . | . . . . . . . . . . . . Propulsion 16 | 2 . 1 5 7 1 . . . . . . Treads 3 | 2 . 1 . . . . . . . . . Leg . | . . . . . . . . . . . . Wheel 13 | . . . 5 7 1 . . . . . . Hover . | . . . . . . . . . . . . Flight . | . . . . . . . . . . . . Utility 31 | 1 2 . 1 9 3 2 2 . 3 6 2 Device 18 | . . . 1 4 1 1 1 . 2 6 2 Storage 3 | 1 1 . . 1 . . . . . . . Processor 2 | . . . . . 1 . . . 1 . . Hackware 2 | . . . . 2 . . . . . . . Protection 6 | . 1 . . 2 1 1 1 . . . . Artifact . | . . . . . . . . . . . . Weapon 33 | 2 3 2 6 6 3 7 1 . . . 3 Energy Gun 10 | . . . 1 3 2 3 1 . . . . Energy Cannon 1 | . . . . . . 1 . . . . . Ballistic Gun 10 | 2 2 2 2 1 . 1 . . . . . Ballistic Cannon 2 | . . . 1 . 1 . . . . . . Launcher 5 | . . . 2 . . 1 . . . . 2 Special Weapon . | . . . . . . . . . . . . Impact Weapon . | . . . . . . . . . . . . Slashing Weapon 3 | . 1 . . 1 . . . . . . 1 Piercing Weapon . | . . . . . . . . . . . . Special Melee Weapon 2 | . . . . 1 . 1 . . . . . Unidentified Prototypes 12 | . . . . 3 . 7 1 . . . 1 Parts Lost 56 | . 1 1 8 1 . 1 2 . 10 5 27 Power 7 | . 1 1 1 . . . . . . . 4 Propulsion 16 | . . . 3 . . . . . 6 . 7 Utility 14 | . . . . . . . 1 . 2 3 8 Weapon 19 | . . . 4 1 . 1 1 . 2 2 8 Highest Loss Streak 9 | . 1 1 5 1 . 1 1 . 5 2 9 To Critical Strikes 3 | . . . . . . . . . . . 3 Average Backups 10 | 1 9 15 13 12 12 11 7 6 6 10 10 Power . | . 1 1 . . 1 1 . . . . . Propulsion 2 | 1 3 6 3 2 3 3 . . . . . Utility 4 | . 1 2 2 3 3 3 3 3 3 8 8 Weapon 3 | . 2 5 6 4 3 3 2 2 2 1 . Tool/Special . | . . . . . . . . . . . . Unused Backups 48 | 2 2 . 7 11 2 4 6 . . 6 8 Power 5 | . 2 . . . 1 . 2 . . . . Propulsion 13 | 2 . . 3 3 1 1 3 . . . . Utility 17 | . . . . 2 . 1 1 . . 5 8 Weapon 13 | . . . 4 6 . 2 . . . 1 . Tool/Special . | . . . . . . . . . . . . Average Slot Usage (%) 75 | . 97 90 89 95 89 83 73 48 48 56 33 Engine 5 | . 13 5 4 8 7 7 5 5 4 . . Treads 6 | . 28 28 16 . . . 3 . . 1 . Wheel 8 | . . . 10 24 20 15 5 5 3 . 1 Device 11 | . . . . 18 15 21 17 11 12 19 11 Storage 8 | . 14 14 14 9 7 7 7 5 5 5 5 Processor 3 | . . . . . 6 7 7 5 8 5 1 Protection 7 | . 12 14 13 11 7 7 7 5 . . . Energy Gun 6 | . . . 5 8 14 8 7 5 3 10 . Ballistic Gun 4 | . 22 24 8 5 . . . . . . . Ballistic Cannon 1 | . . . 1 . . 4 5 . 3 . . Launcher 2 | . . . 12 . . . . . . . . Peak Build Rating 117 | 6 8 8 16 29 46 49 61 56 69 114 117 Average Rating 41 | 4 7 7 11 25 39 47 54 53 51 84 67 On Entrance 37 | . 6 8 8 16 27 45 49 52 56 67 113 Avg Prop Armor Cover (%) 15 | . . . 15 . . . . . . . . Naked Turns . | . . . . . . . . . . . . Heaviest Build 69 | 12 28 28 38 49 62 66 66 55 65 57 69 Greatest Support 146 | 40 40 40 40 55 44 44 53 53 53 146 146 Greatest Overweight (x) 11 | . . . 2 2 1 1 3 1 11 1 10 Average Overweight (x) . | . . . 1 . 1 1 1 1 1 . . Largest Inventory Capacity 15 | 8 15 15 15 15 15 15 15 15 15 15 15 Average Capacity 14 | 7 11 15 15 15 15 15 15 15 15 15 15 Most Carried 15 | 5 15 15 15 15 15 15 15 8 11 15 15 Average Carried 12 | 1 9 14 14 13 14 14 9 7 9 14 12 Final Capacity 15 | 8 15 15 15 15 15 15 15 15 15 15 15 Final Carried 15 | 3 15 13 11 15 15 15 7 7 11 15 11 Scrap Engine Consumption 150 | . . . . . . . 27 2 27 69 25 Constructs Created 14 | . . . . . . . 3 . 3 3 5 Constructs Modified 46 | . . . . . . . 6 1 8 24 7 Class Distribution -------------------- 73% | Mutant 23% | Construct Dominant Class ---------------- Mutant | -10/Materials Mutant | -10/Mines Mutant | -10/Subcaves Mutant | -8/Materials Mutant | -7/Factory Mutant | -7/Storage Mutant | -7/Recycling Mutant | -5/Factory Mutant | -5/DSF Construct | -5/Garrison Mutant | -4/Factory Resources | -11 -10 -10 -10 -8 -7 -7 -7 -5 -5 -5 -4 ----------- Run | Yrd Mat Min Sub Mat Fac Sto Rec Fac DSF Gar Fac Matter Collected 3187 | 236 198 68 633 489 94 258 218 . 148 424 421 Remotely . | . . . . . . . . . . . . Salvage Created 6992 | . 367 67 301 786 112 800 504 . 424 2414 1217 Parts 338 | . 26 6 27 61 5 32 28 . 18 80 55 Haulers Intercepted 4 | . 1 . . 1 . 1 . . . . 1 Recyclers Shooed 3 | . . . . . . . . . . . 3 Parts Field Recycled . | . . . . . . . . . . . . Retrieved Matter . | . . . . . . . . . . . . Parts Self-Destructed 4 | . . . 4 . . . . . . . . Prevented . | . . . . . . . . . . . . Parts Restored . | . . . . . . . . . . . . Kills | -11 -10 -10 -10 -8 -7 -7 -7 -5 -5 -5 -4 ------- Run | Yrd Mat Min Sub Mat Fac Sto Rec Fac DSF Gar Fac Combat Hostiles Destroyed 122 | . 11 4 13 13 1 11 10 . 9 29 21 Melee 10 | . 1 . . 3 . . . . . . 6 Guns 65 | . 10 4 3 8 . 7 3 . 5 22 3 Cannons 15 | . . . 1 . . 1 6 . 4 3 . AOE 26 | . . . 9 1 1 2 1 . . . 12 Classes Destroyed 18 | . 6 1 2 1 1 2 . . 1 3 1 Worker 5 | . 1 . . 2 . . . . . . 2 Builder 6 | . . 1 . 1 . 1 . . . . 3 Tunneler 1 | . 1 . . . . . . . . . . Hauler 4 | . 1 . . 1 . 1 . . . . 1 Recycler 5 | . . . . 2 . 2 . . . . 1 Mechanic 2 | . . . . . . . . . . . 2 Operator 1 | . . . . . 1 . . . . . . Watcher 8 | . 1 . . 4 1 1 . . . . 1 Swarmer 31 | . 8 4 . 8 . 4 . . 3 4 . Grunt 41 | . 3 . 1 1 . 4 . . 4 14 14 Brawler 2 | . . . . . . 1 . . . 1 . Duelist 3 | . . . . . . . . . . 1 2 Sentry 10 | . . . 1 4 1 1 3 . . . . Specialist 2 | . . . . . . . . . 2 . . Hunter 3 | . . . . . . 1 . . . 1 1 Programmer 9 | . . . . . . . . . . 5 4 Behemoth 3 | . . . . . . . . . . 3 . Subdweller 18 | . . . 11 . . . 7 . . . . Best Kill Streak 8 | . 5 3 2 4 1 7 2 . 5 4 8 Combat Bots Only 5 | . 4 3 2 4 1 5 2 . 5 4 5 Max Kills in Single Turn 3 | . 1 2 2 2 1 2 1 . 1 2 3 Gunslinging 1 | . . . . 1 . . . . . 1 . Exploded 2 | . . . 2 1 1 1 1 . . . 2 Melee 1 | . 1 . . 1 . . . . . . 1 Uniques/NPCs Destroyed . | . . . . . . . . . . . . Combat | -11 -10 -10 -10 -8 -7 -7 -7 -5 -5 -5 -4 -------- Run | Yrd Mat Min Sub Mat Fac Sto Rec Fac DSF Gar Fac Hostile Shots Fired 1069 | . 45 34 36 64 18 81 60 . 164 168 399 Missed 370 | . 12 15 13 24 6 25 21 . 75 55 124 Hits 699 | . 33 19 23 40 12 56 39 . 89 113 275 Melee 3 | . . . . . . 1 . . . 1 1 Projectile 696 | . 33 19 23 40 12 55 39 . 89 112 274 AOE 14 | . . . 10 . . . 3 . . . 1 Critical Strikes 31 | . 1 . 1 2 . 1 . . 3 3 20 Part Disruptions 1 | . . 1 . . . . . . . . . Damage Taken 14059 | . 374 170 990 507 124 724 761 . 1900 2346 6163 Core 1863 | . 64 15 137 63 . 39 33 . 138 223 1151 Absorbed by Shields 20 | . . . . . . . . . . 20 . Redirected to Shielding 49 | . 12 2 28 7 . . . . . . . Ignored by Resistances 42 | . . . . 42 . . . . . . . Regen/Repaired (Parts) 2219 | . . . . . . . 5 10 407 1116 681 Core Remaining (%) 70 | 100 . . 13 88 . . 89 . . 63 . Volleys Fired 399 | . 27 9 44 28 11 34 33 . 46 133 34 Largest 4 | . 2 2 2 2 2 2 2 . 2 3 4 Hottest 194 | . 40 40 100 95 100 105 105 . 134 184 194 Shots Fired 736 | . 49 18 64 54 17 61 64 . 64 284 61 Gun 548 | . 49 18 39 51 12 54 41 . 35 216 33 Cannon 147 | . . . 7 3 5 7 18 . 29 68 10 Launcher 41 | . . . 18 . . . 5 . . . 18 Special . | . . . . . . . . . . . . Kinetic 319 | . 49 18 51 18 5 7 18 . 61 60 32 Thermal 251 | . . . 13 . . . . . 3 224 11 Explosive 18 | . . . . . . . . . . . 18 Electromagnetic 148 | . . . . 36 12 54 46 . . . . Robot Hit Streak 44 | . 14 3 10 13 4 19 11 . 8 44 14 Robot Miss Streak 8 | . 7 2 2 6 3 3 3 . 3 8 3 Penetration Max 1 | . . . . . . . . . 1 1 1 Secondary Targets 6 | . 1 . . 1 . 1 . . . 3 . Max Gunslinging Chain 1 | . 1 . . 1 . 1 . . . 1 . Capacitor 5 | . . . . . . . . . . 5 . Shots Hit Robots 558 | . 37 8 32 56 8 50 47 . 44 196 80 Core Hits 368 | . 17 5 21 30 6 34 20 . 27 140 68 Critical Kills 5 | . . . . . . . . . 1 3 1 Critical Parts Destroyed 6 | . 1 . . . . . . . 4 1 . Critical Strikes 29 | . 1 . . 3 . 1 . . 5 14 5 Burn 10 | . . . . . . . . . . 10 . Meltdown 3 | . . . . . . . . . . 3 . Destroy 8 | . 1 . . . . . . . 5 1 1 Blast 1 | . . . . . . 1 . . . . . Sever 7 | . . . . 3 . . . . . . 4 Melee Attacks 82 | . 12 . . 24 . 1 . . . . 45 Impact . | . . . . . . . . . . . . Slashing 80 | . 12 . . 23 . . . . . . 45 Piercing . | . . . . . . . . . . . . Sneak Attacks 10 | . 2 . . 5 . 1 . . . . 2 Combat Hostiles . | . . . . . . . . . . . . Follow-up Attacks . | . . . . . . . . . . . . Damage Inflicted 18450 | . 649 140 1461 1472 299 1153 1016 . 771 5202 6287 Guns 7611 | . 414 140 279 611 115 769 366 . 450 3761 706 Cannons 2591 | . . . 99 31 . 65 448 . 321 1441 186 Explosions 5832 | . . . 1083 53 184 319 202 . . . 3991 Melee 2368 | . 235 . . 729 . . . . . . 1404 Ramming 48 | . . . . 48 . . . . . . . Kinetic 4961 | . 414 140 1443 177 . 65 448 . 732 813 729 Thermal 5471 | . . . 18 53 184 319 79 . 39 4389 390 Explosive 3764 | . . . . . . . . . . . 3764 Electromagnetic 1838 | . . . . 465 115 769 489 . . . . Impact . | . . . . . . . . . . . . Slashing 2368 | . 235 . . 729 . . . . . . 1404 Piercing . | . . . . . . . . . . . . Highest Corruption 15 | . . 1 1 5 . . . . . 6 15 Average Corruption 3 | . . 1 1 4 . . . . . 2 8 Corruption Purged 1 | . . . 1 . . . . . . . . Corruption Blocked . | . . . . . . . . . . . . Effects 83 | . . 1 3 15 . . . . . 32 32 Message Errors 19 | . . . . 3 . . . . . 6 10 Matter Fused 18 | . . . 1 3 . . . . . 9 5 Heat Flow Errors 9 | . . . . 2 . . . . . 5 2 Energy Discharges 9 | . . . 1 1 . . . . . 2 5 Parts Rejected 2 | . . . . . . . . . . 1 1 Parts Fused 2 | . . . . . . . . . . 1 1 Data Loss (minor) 10 | . . . . 4 . . . . . 4 2 Data Loss (major) 7 | . . 1 . 2 . . . . . 2 2 Misfires 1 | . . . 1 . . . . . . . . Misdirections 4 | . . . . . . . . . . . 4 Weapon Failures 2 | . . . . . . . . . . 2 . Overload Shots . | . . . . . . . . . . . . Overflow Damage 469 | . . . 4 . . 25 . . . . 440 Projectiles . | . . . . . . . . . . . . Explosions 387 | . . . 4 . . 25 . . . . 358 Melee 82 | . . . . . . . . . . . 82 Knockbacks 19 | . . . 2 . . . 4 . 6 1 6 Impact . | . . . . . . . . . . . . Kinetic 19 | . . . 2 . . . 4 . 6 1 6 Secondary . | . . . . . . . . . . . . Self-Inflicted Damage 790 | . . . 81 23 17 53 . . . . 616 Shots 19 | . . . 3 . 1 1 . . . . 14 Rammed 3 | . . . . 3 . . . . . . . Targets Rammed 3 | . . . . 3 . . . . . . . Kicked . | . . . . . . . . . . . . Crushed . | . . . . . . . . . . . . Highest Temperature 469 | . . . 7 229 23 60 48 . 469 319 209 Average Temperature 71 | . . . 7 70 12 19 19 . 163 81 53 Received Heat Transfer 2448 | . 144 . 102 198 30 138 105 . 321 739 671 Siege Activations . | . . . . . . . . . . . . Martial Activations . | . . . . . . . . . . . . Shielding Activations . | . . . . . . . . . . . . Robots Disrupted 1 | . . . . 1 . . . . . . . Combat Hostiles 1 | . . . . 1 . . . . . . . Robots Corrupted 2 | . . . . 1 . 1 . . . . . Combat Hostiles 2 | . . . . 1 . 1 . . . . . Parts Fried 15 | . . . . 4 . 9 1 . 1 . . Impact Corruptions . | . . . . . . . . . . . . Robots Melted 8 | . . . . . . . . . . 8 . Combat Hostiles 4 | . . . . . . . . . . 4 . Parts Melted 27 | . . . . . . 1 . . . 26 . Heat Transferred 8582 | . . . 25 50 50 300 100 . 74 7783 200 Parts Sabotaged . | . . . . . . . . . . . . Parts Stolen . | . . . . . . . . . . . . Parts Stripped . | . . . . . . . . . . . . Power Chain Reactions 7 | . . . . 2 2 2 1 . . . . Alert | -11 -10 -10 -10 -8 -7 -7 -7 -5 -5 -5 -4 ------- Run | Yrd Mat Min Sub Mat Fac Sto Rec Fac DSF Gar Fac Maximum Alert Level 4 | . . . . 1 . 1 . . 1 4 4 Low Security (%) 60 | 100 100 100 . 49 100 59 100 100 61 3 . Level 1 15 | . . . . 50 . 40 . . 38 18 . Level 2 4 | . . . . . . . . . . 24 . Level 3 12 | . . . . . . . . . . 27 75 Level 4 7 | . . . . . . . . . . 25 24 Level 5 . | . . . . . . . . . . . . High Security . | . . . . . . . . . . . . Max Security . | . . . . . . . . . . . . Sterilizations 1 | . . . . . . . . . 1 . . Peak Influence 1382 | . 91 80 . 323 195 294 90 5 245 1382 1211 Initial 725 | . . 9 . . 137 16 57 . . 183 725 Average 297 | . 33 27 . 169 102 155 6 . 157 757 998 Influence Increases 4591 | . 300 110 40 702 355 479 108 5 345 1289 858 Destroy 0b10 Robot/C 2360 | . 220 80 40 260 120 220 60 . 180 760 420 Destroy 0b10 Robot/NC 200 | . 20 5 . 50 20 25 . . . 30 50 Destroy Leader 358 | . 44 10 . 70 46 44 . . 30 40 74 Allied During Kill 57 | . . . . 4 6 . . . . 47 . Trap Triggered on 0b10 40 | . . . . . . 10 . . 30 . . Successful Hack 229 | . 15 . . 28 74 50 43 5 . 14 . Select Force Hacks 60 | . . . . . 60 . . . . . . Disable Machine 195 | . . . . 15 15 45 . . . 30 90 Anti-Garrison Action 250 | . . . . . . . . . . 250 . Destroy Structure 347 | . 1 . . 5 14 10 5 . . 88 224 Lose Combat Pursuer 495 | . . 15 . 270 . 75 . . 105 30 . Influence Decreases 3676 | . 275 135 40 399 622 368 255 5 100 152 1325 Entered New Map 1011 | . . 16 . . 166 20 90 . . 62 657 Time Decay 2124 | . 265 109 40 398 416 338 155 5 . . 398 Lost Part 461 | . 10 10 . 1 . 10 10 . 100 50 270 Lost Ally 80 | . . . . . 40 . . . . 40 . Squads Dispatched 16 | . 2 . . . 6 2 . . 1 . 5 Investigation 2 | . . . . . 2 . . . . . . Extermination 4 | . . . . . 1 1 . . . . 2 Reinforcement 7 | . 2 . . . . 1 . . 1 . 3 Assault . | . . . . . . . . . . . . Garrison 3 | . . . . . 3 . . . . . . Intercept . | . . . . . . . . . . . . Searches Triggered . | . . . . . . . . . . . . Construction Impeded 3 | . . . . . . . . . . . 3 Haulers Reinforced 1 | . . . . . . 1 . . . . . Active Scanning Responses . | . . . . . . . . . . . . Cargo Convoy Interrupts . | . . . . . . . . . . . . Stealth | -11 -10 -10 -10 -8 -7 -7 -7 -5 -5 -5 -4 --------- Run | Yrd Mat Min Sub Mat Fac Sto Rec Fac DSF Gar Fac Distress Signals 7 | . 1 . . 3 1 2 . . . . . Communications Jammed . | . . . . . . . . . . . . Distress Signals . | . . . . . . . . . . . . Times Spotted 210 | . 24 7 14 44 9 14 13 . 18 37 30 Peak Tracking Total 8 | . 6 3 2 8 3 6 3 . 7 5 6 Tactical Retreats 24 | . . 1 . 13 . 2 2 . 4 2 . Traps | -11 -10 -10 -10 -8 -7 -7 -7 -5 -5 -5 -4 ------- Run | Yrd Mat Min Sub Mat Fac Sto Rec Fac DSF Gar Fac Traps Triggered 11 | . . . . 3 . . . . 1 6 1 Indirectly . | . . . . . . . . . . . . Trap Hack Attempts 26 | . . . . 6 . 11 . 9 . . . Triggered . | . . . . . . . . . . . . Disarmed . | . . . . . . . . . . . . Reprogrammed 5 | . . . . 1 . 2 . 2 . . . Reused 4 | . . . . . . 1 . . 3 . . Traps Extracted . | . . . . . . . . . . . . Installed 10 | . . . . . . . . . 4 6 . Triggered 4 | . . . . . . 1 . . 3 . . Most Traps Carried 6 | . . . . . . . . . 4 6 . Machines | -11 -10 -10 -10 -8 -7 -7 -7 -5 -5 -5 -4 ---------- Run | Yrd Mat Min Sub Mat Fac Sto Rec Fac DSF Gar Fac Machines Disabled 17 | . . . 1 1 1 3 . . . 5 6 Max in Single Turn 2 | . . . 1 1 1 1 . . . 1 2 Garrison Relay 3 | . . . . . . . . . . 3 . Machines Repaired . | . . . . . . . . . . . . Machines Dismantled . | . . . . . . . . . . . . Machines Sabotaged . | . . . . . . . . . . . . Overloaded Fab Kills . | . . . . . . . . . . . . Hacking | -11 -10 -10 -10 -8 -7 -7 -7 -5 -5 -5 -4 --------- Run | Yrd Mat Min Sub Mat Fac Sto Rec Fac DSF Gar Fac Machines Accessed 41 | . 5 . 2 8 9 4 9 1 . 2 1 Terminals 30 | . 5 . . 8 5 3 5 1 . 2 1 Fabricators 1 | . . . . . 1 . . . . . . Repair Stations . | . . . . . . . . . . . . Recycling Units 5 | . . . . . 1 1 3 . . . . Scanalyzers 2 | . . . . . 2 . . . . . . Garrison Access . | . . . . . . . . . . . . Total Hacks 105 | . 19 . 5 20 24 8 24 1 . 3 1 Successful 44 | . 5 . 5 7 10 4 11 1 . 1 . Failed 61 | . 14 . . 13 14 4 13 . . 2 1 Catastrophic 6 | . . . . 2 2 1 1 . . . . Database Lockouts . | . . . . . . . . . . . . Manual 56 | . 15 . . 13 10 6 11 . . . 1 Terminals 77 | . 19 . . 20 15 6 12 1 . 3 1 Fabricators 6 | . . . . . 6 . . . . . . Repair Stations . | . . . . . . . . . . . . Recycling Units 12 | . . . . . 1 2 9 . . . . Scanalyzers 2 | . . . . . 2 . . . . . . Garrison Access . | . . . . . . . . . . . . Terminal Hacks 27 | . 3 . 5 5 5 2 5 1 . 1 . Record 5 | . . . 4 . . . 1 . . . . Robot Analysis 3 | . 2 . . 1 . . . . . . . Prototype ID Bank 2 | . . . . . 1 . 1 . . . . Open DSF 1 | . . . . . . . . 1 . . . Branch Access Points 3 | . . . . 1 1 1 . . . . . Emergency Access Points 1 | . . . . . . . . . . 1 . Terminal Index 3 | . 1 . . 1 1 . . . . . . Recycling Unit Index 2 | . . . . 1 1 . . . . . . Alert Level 1 | . . . . . 1 . . . . . . Locate Traps 1 | . . . . 1 . . . . . . . Zone Layout 2 | . . . . . . 1 1 . . . . Proto ID Catalog 1 | . . . 1 . . . . . . . . Release Object 2 | . . . . . . . 2 . . . . Fabricator Hacks 1 | . . . . . 1 . . . . . . Network Status 1 | . . . . . 1 . . . . . . Repair Station Hacks . | . . . . . . . . . . . . Recycling Unit Hacks 2 | . . . . . . . 2 . . . . Retrieve Components 2 | . . . . . . . 2 . . . . Scanalyzer . | . . . . . . . . . . . . Garrison Access Hacks . | . . . . . . . . . . . . Unauthorized Hacks 14 | . 2 . . 2 4 2 4 . . . . Terminals 5 | . 2 . . 2 . . 1 . . . . Botnet 4 | . 1 . . 2 . . 1 . . . . Operators 1 | . 1 . . . . . . . . . . Fabricators 2 | . . . . . 2 . . . . . . Report 1 | . . . . . 1 . . . . . . Liberate 1 | . . . . . 1 . . . . . . Repair Stations . | . . . . . . . . . . . . Recycling Units 5 | . . . . . . 2 3 . . . . Monitor 1 | . . . . . . . 1 . . . . Reject 1 | . . . . . . 1 . . . . . Recyclers 1 | . . . . . . . 1 . . . . Mask 2 | . . . . . . 1 1 . . . . Scanalyzers 2 | . . . . . 2 . . . . . . Extract 2 | . . . . . 2 . . . . . . Garrison Access . | . . . . . . . . . . . . Data Cores Recovered 1 | . . . . . 1 . . . . . . Used . | . . . . . . . . . . . . Hacking Detections 34 | . 5 . . 8 7 5 6 . . 2 1 Full Trace Events 1 | . 1 . . . . . . . . . . Feedback Events . | . . . . . . . . . . . . Feedback Blocked . | . . . . . . . . . . . . Robot Schematics Acquired . | . . . . . . . . . . . . Robots Built . | . . . . . . . . . . . . Authchips . | . . . . . . . . . . . . Time . | . . . . . . . . . . . . Total Robot Build Rating . | . . . . . . . . . . . . Part Schematics Acquired 7 | . . . . . 7 . . . . . . Parts Built . | . . . . . . . . . . . . Authchips . | . . . . . . . . . . . . Time . | . . . . . . . . . . . . Total Part Build Rating . | . . . . . . . . . . . . Part Studies Acquired . | . . . . . . . . . . . . Parts Repaired . | . . . . . . . . . . . . Time . | . . . . . . . . . . . . Parts Recycled . | . . . . . . . . . . . . Recycled Matter . | . . . . . . . . . . . . Retrieved Matter . | . . . . . . . . . . . . Retrieved Components 2 | . . . . . . . 2 . . . . Parts Scanalyzed . | . . . . . . . . . . . . Part Schematics Acquired . | . . . . . . . . . . . . Parts Damaged . | . . . . . . . . . . . . Bothacking | -11 -10 -10 -10 -8 -7 -7 -7 -5 -5 -5 -4 ------------ Run | Yrd Mat Min Sub Mat Fac Sto Rec Fac DSF Gar Fac Used RIF Installer 1 | . . . . . . . . . . 1 . Robots Hacked 1 | . . . . . . 1 . . . . . Non-combat 1 | . . . . . . 1 . . . . . Combat . | . . . . . . . . . . . . Robot Hacks Applied 1 | . . . . . . 1 . . . . . no_distress 1 | . . . . . . 1 . . . . . Relay Couplers Released 13 | . . . . . . . . . . 13 . Machine Destruction 10 | . . . . . . . . . . 10 . Programmers 3 | . . . . . . . . . . 3 . Fabnet Peak Effective % . | . . . . . . . . . . . . Robots Rewired 1 | . . . . 1 . . . . . . . Allies Hacked 1 | . . . . . . . . . . 1 . Hacks Repelled . | . . . . . . . . . . . . Allies | -11 -10 -10 -10 -8 -7 -7 -7 -5 -5 -5 -4 -------- Run | Yrd Mat Min Sub Mat Fac Sto Rec Fac DSF Gar Fac Total Allies 8 | . . 3 . 1 2 . . . . 2 . Largest Group 3 | . . 3 3 1 2 . . . . 2 . Highest-Rated Group 190 | . . 40 40 14 64 . . . . 190 . Highest-Rated Ally 95 | . . 16 16 14 32 . . . . 95 . Initial Warlord ECA Mod 10 | . . . . . . . . . . 10 . Total Orders . | . . . . . . . . . . . . Ally Attacks 61 | . . . 7 . 25 . . . . 29 . Total Damage 2229 | . . . 89 . 584 . . . . 1556 . Kills 17 | . . . 1 . 7 . . . . 9 . Allies Corrupted . | . . . . . . . . . . . . Allies Melted . | . . . . . . . . . . . . Intel | -11 -10 -10 -10 -8 -7 -7 -7 -5 -5 -5 -4 ------- Run | Yrd Mat Min Sub Mat Fac Sto Rec Fac DSF Gar Fac Active Infowar (turns) 425 | . . . . . 48 273 . . . 104 . Sensors 321 | . . . . . 48 273 . . . . . Terrain 104 | . . . . . . . . . . 104 . Robot Analysis Total 3 | . 2 . . 1 . . . . . . . Derelict Logs Recovered 2 | . . 1 1 . . . . . . . . Drone Launches . | . . . . . . . . . . . . Drone Recoveries . | . . . . . . . . . . . . Exploration | -11 -10 -10 -10 -8 -7 -7 -7 -5 -5 -5 -4 ------------- Run | Yrd Mat Min Sub Mat Fac Sto Rec Fac DSF Gar Fac Turns Passed 12206 | 86 841 264 2589 1157 1002 787 1723 400 628 1779 950 Spaces Moved 6965 | 47 378 118 1777 779 746 228 832 185 188 1151 536 Core 36 | 3 . . . . . . . . 10 . 23 Treads 1788 | 44 378 118 453 . . . 419 . . 376 . Legs 844 | . . . . . . . . . 45 593 206 Wheels 4043 | . . . 1324 779 746 228 413 185 133 . 235 Hover 254 | . . . . . . . . . . 182 72 Flight . | . . . . . . . . . . . . Fastest Speed 50 | 50 160 160 105 86 108 115 115 210 121 59 59 Average Speed 132 | 152 160 160 135 105 110 115 174 210 196 102 127 Slowest Speed 600 | 160 160 160 160 130 115 115 312 210 600 121 550 Overloaded Moves . | . . . . . . . . . . . . Propulsion Burnouts . | . . . . . . . . . . . . Robots Hopped . | . . . . . . . . . . . . Potential Cave-ins . | . . . . . . . . . . . . Cave-ins Triggered . | . . . . . . . . . . . . Exploration Rate (%) 47 | 3 66 27 84 54 21 34 94 3 87 79 12 Regions Visited 11 Branch Regions 4 Pre-discovered Areas 1 | . . . 1 . . . . . . . . Known Exits Taken 4 | . . . 1 . 1 1 . 1 . . . Unknown Exits Taken 5 | 1 1 1 . 1 . . 1 . . . . Scrap Searched 5 | . . . 5 . . . . . . . . Spaces Dug 6 | . . . . 1 4 . 1 . . . . Terrain Destroyed 435 | . . . 249 5 15 9 4 . . 5 148 Melee 1 | . . . . 1 . . . . . . . Projectile 14 | . . . 2 1 4 . 2 . . 5 . AOE 420 | . . . 247 3 11 9 2 . . . 148 Terrain Rammed . | . . . . . . . . . . . . Walls Destroyed . | . . . . . . . . . . . . Machines Disabled . | . . . . . . . . . . . . Actions | -11 -10 -10 -10 -8 -7 -7 -7 -5 -5 -5 -4 --------- Run | Yrd Mat Min Sub Mat Fac Sto Rec Fac DSF Gar Fac Total 9123 | 59 542 174 1909 1028 909 690 1047 197 386 1498 684 Wait 1272 | . 100 43 30 95 126 380 147 2 130 164 55 Move 6954 | 46 377 117 1776 778 745 227 831 184 187 1150 536 Hop . | . . . . . . . . . . . . Pick Up 101 | 5 14 . 19 22 4 6 2 1 9 18 1 Fast Attach 50 | 6 1 . 4 18 3 9 1 . 2 4 2 Attach 33 | . 1 1 9 5 1 1 4 1 2 1 7 Detach 25 | . . . 1 8 2 . 9 . 2 . 3 Swap 47 | . 6 3 6 12 7 7 4 . . 2 . Drop 113 | 2 4 1 20 28 10 14 13 . 4 16 1 Fire 399 | . 27 9 44 28 11 34 33 . 46 133 34 Melee 82 | . 12 . . 24 . 1 . . . . 45 Ram 3 | . . . . 3 . . . . . . . Kick . | . . . . . . . . . . . . Crush . | . . . . . . . . . . . . Escape Stasis 4 | . . . . . . . . . . 4 . Rewire 4 | . . . . 1 . . 3 . . . . Trap 36 | . . . . 6 . 11 . 9 4 6 . Miscellaneous . | . . . . . . . . . . . . Route ------- -11/Scrapyard -10/Materials (discovered 3 exits: [*Mat] / [*Min x2]) -10/Mines -10/Subcaves (discovered 2 exits: *Mat / Rec) -8/Materials (discovered 2 exits: *Fac x2) -7/Factory (discovered 4 exits: [*Fac] / *Sto / *Low x2) -7/Storage -7/Recycling -5/Factory (discovered 2 exits: [*Upp] / DSF) -5/DSF -5/Garrison (discovered 3 exits: *Fac x3) -4/Factory History --------- Turn | Location | Event 3 | -11/Scrapyard | Discovered new exit (range 16) 87 | -11/Scrapyard | Entered Materials 220 | -10/Materials | Discovered new exit (range 16) 315 | -10/Materials | Build established: Mutant 562 | -10/Materials | Discovered new exit (range 10) 904 | -10/Materials | Discovered new exit (range 14) 928 | -10/Materials | Entered Mines 1085 | -10/Mines | Assisted by bots powering up and referring to "LRC-V3" 1167 | -10/Mines | Discovered new exit (range 5) 1192 | -10/Mines | Entered Subcaves 1192 | -10/Subcaves | Accompanied by 3 allies 1193 | -10/Subcaves | Identified exit to Recycling 1287 | -10/Subcaves | Lost 3 allies 1763 | -10/Subcaves | Shifting Twisted Machinery released Flamer 1766 | -10/Subcaves | Shifting Twisted Machinery released Riot Gun 2470 | -10/Subcaves | Shifting Twisted Machinery released Shrapnel Trap 2484 | -10/Subcaves | Shifting Twisted Machinery released Ripper 2560 | -10/Subcaves | Visited 4L-MR0's lab 2578 | -10/Subcaves | Found Powered Cannon 3162 | -10/Subcaves | Identified exit to Materials 3184 | -10/Subcaves | Visited Clippyterm 3188 | -10/Subcaves | Learned location of Deep Caves (-7) 3188 | -10/Subcaves | Learned Factory trap positions 3241 | -10/Subcaves | A swath of the cavern ceiling suddenly collapsed 3480 | -10/Subcaves | Ambushed by Subdwellers from Twisted Machinery 3558 | -10/Subcaves | Ambushed by Subdwellers from Twisted Machinery 3559 | -10/Subcaves | Core integrity fell below 50% 3582 | -10/Subcaves | Core integrity fell below 20% 3594 | -10/Subcaves | Lost 5 parts (2n3w) 3781 | -10/Subcaves | Entered Materials 3781 | -8/Materials | Evolved 4 slots: Propulsion x1, Utility x3 4202 | -8/Materials | Discovered new exit (range 8) 4858 | -8/Materials | Discovered new exit (range 10) 4938 | -8/Materials | Entered Factory 4938 | -7/Factory | Accompanied by 1 ally 4938 | -7/Factory | Evolved 2 slots: Utility x2 4939 | -7/Factory | Loaded intel: 128 trap records 5119 | -7/Factory | Identified exit to Storage 5119 | -7/Factory | Identified exit to Lower Caves 5501 | -7/Factory | Garrison activated, responded to threat 5543 | -7/Factory | Discovered new exit (range 14) 5940 | -7/Factory | Entered Storage 6722 | -7/Storage | Used back door to open Recycling access 6727 | -7/Storage | Entered Recycling 7193 | -7/Recycling | Entered Scraplab 7226 | -7/Recycling | Found Prototype Device 7226 | -7/Recycling | Identified Scrap Engine 7482 | -7/Recycling | Discovered new exit (range 10) 7985 | -7/Recycling | Build established: Construct 8450 | -7/Recycling | Entered Factory 8450 | -5/Factory | Evolved 4 slots: Power x1, Propulsion x2, Weapon x1 8503 | -5/Factory | Discovered new exit (range 5) 8737 | -5/Factory | Build established: Mutant 8848 | -5/Factory | Identified exit to DSF 8850 | -5/Factory | Entered DSF 8882 | -5/DSF | Additional patrols routed to DSF 9039 | -5/DSF | Lost 5 parts (2n2u1w) 9281 | -5/DSF | Sterilization system engaged 9300 | -5/DSF | Lost 5 parts (4n1w) 9301 | -5/DSF | Ambient heat levels rising (+10) 9316 | -5/DSF | Ambient heat levels rising (+10) 9331 | -5/DSF | Ambient heat levels rising (+10) 9346 | -5/DSF | Ambient heat levels rising (+10) 9361 | -5/DSF | Ambient heat levels rising (+10) 9376 | -5/DSF | Ambient heat levels rising (+10) 9391 | -5/DSF | Ambient heat levels rising (+10) 9406 | -5/DSF | Ambient heat levels rising (+10) 9421 | -5/DSF | Ambient heat levels rising (+10) 9436 | -5/DSF | Ambient heat levels rising (+10) 9451 | -5/DSF | Ambient heat levels rising (+10) 9459 | -5/DSF | Discovered new exit (range 14) 9466 | -5/DSF | Ambient heat levels rising (+10) 9478 | -5/DSF | Entered Garrison 9544 | -5/Garrison | Triggered checkpoint 9594 | -5/Garrison | Garrison Relay disabled 9760 | -5/Garrison | Build established: Construct 9807 | -5/Garrison | Triggered checkpoint 10095 | -5/Garrison | Spotted B-75 Beast 10122 | -5/Garrison | Destroyed B-75 Beast 10219 | -5/Garrison | Discovered new exit (range 13) 10238 | -5/Garrison | Triggered checkpoint 10300 | -5/Garrison | Garrison Relay disabled 10314 | -5/Garrison | Triggered checkpoint 10379 | -5/Garrison | Triggered checkpoint 10457 | -5/Garrison | Found embedded Infiltrators 10479 | -5/Garrison | Discovered new exit (range 9) 10517 | -5/Garrison | Found Quantum Capacitor 10520 | -5/Garrison | Found Quantum Capacitor 10552 | -5/Garrison | Spotted B-75 Beast 10565 | -5/Garrison | Allies destroyed B-75 Beast 10696 | -5/Garrison | Triggered checkpoint 10771 | -5/Garrison | Found Quantum Capacitor 10794 | -5/Garrison | Triggered checkpoint 10997 | -5/Garrison | Spotted B-75 Beast 10997 | -5/Garrison | Spotted B-75 Beast 11006 | -5/Garrison | Destroyed B-75 Beast 11025 | -5/Garrison | Destroyed B-75 Beast 11049 | -5/Garrison | Found Fusion Bomb Launcher 11052 | -5/Garrison | Found Fusion Bomb Launcher 11080 | -5/Garrison | Discovered new exit (range 15) 11098 | -5/Garrison | Triggered checkpoint 11161 | -5/Garrison | Installed Relay Interface Framework 11217 | -5/Garrison | Garrison Relay disabled 11257 | -5/Garrison | Entered Factory 11257 | -4/Factory | Evolved 2 slots: Propulsion x1, Weapon x1 11395 | -4/Factory | Lost 4 parts (4w) 11642 | -4/Factory | System corruption reached 10% 11683 | -4/Factory | Lost 8 parts (2p1n2u3w) 11768 | -4/Factory | Core integrity fell below 50% 11798 | -4/Factory | Build established: Mutant 11819 | -4/Factory | Lost 9 parts (1p3n4u1w) 12191 | -4/Factory | Core integrity fell below 20% 12207 | -4/Factory | Destroyed by P-70 Sage with High-powered Shock Rifle Last Messages --------------- 12193_ Wheeled Myomer-Carbon Exoskeleton destroyed. 12193_ Wheeled Myomer-Carbon Exoskeleton core remains intact and functional. 12193_ Knocked back. 12195_ U-05 Engineer builds a Wall. 12195_ Penetrated by Slug. 12195_ Multi-Antimatter Reactor destroyed. 12195_ Scrap Engine damaged due to network destabilization (-5). 12197_ YRXJXQXW DU7BDE5|<,CFJSYW|VXDNQ7QF1O 12200_ Scrap Engine envelopes itself in armor. 12201_ Wheeled Myomer-Carbon Exoskeleton destroyed. 12201_ Arm. Scrap Engine damaged due to network destabilization (-7). 12206_ Penetrated by Slug. 12206_ Arm. Scrap Engine destroyed. 12206_ Scrap Engine core remains intact and functional. Map ----- +----------------------------------------------------+ | ?# # " ""# "" """" #???????????????????? | | ?# " " T"# #???????????????????? | | ?# " " ""# " """ #???????????????????? | | ?# # " ""# """" """" #???????????????????? | | ?# / *" ""# """" """" #???????????????????? | | ?# #%/" ""# """" """" #???????????????????? | | ?# #!! "# ! #???????????????????? | | ?# ^^^ # %* # | #???????????????????? | | ## ###/########/######???????????????????? | | #?????????????????????? | | #?????????????????????? | | #?????????????????????? | | #?????????????????????? | | #?????????????????????? | | AH #?????????????????????? | | #?????????????????????? | | #################### #?????????????????????? | | ## = #?????# #?????????????????????? | | # ##?????# u##????????????????????? | | # # #??????# %##????????????????????? | | ###??????# ##????????????????????? | | #???????# %##????????????????????? | | ! ?# T#????????????????????? | | # ?# #????????????????????? | | """" """" ?# ##????????????????????? | | """" """???# @ #?????????????????????? | | """" ""????# #?????????????????????? | | " """???"????# #?????????????????????? | | ????????# ;?????????????????????? | | " """"???????#k p # ????????????????????? | | " """????????# p# ???????????????????? | | "" ""?????????# +? ???????????????????? | | "# ""?????????# #? ??????????????????? | | #"""""# ??????????# #?? ?????????????????? | | #########??????????# #??? ????????????????? | | ???????????????????# #??? ????????????????? | | ??????????????????? #???? ???????????????? | | ??????????????????? #????? ??????????????? | | ?????????????????? ??????????????????????? | | ????????????????????? ??????????????????????? | | ??????????????????????? ??????????????????????? | | ?????????????????????????????????????????????????? | | ?????????????????????????????????????????????????? | | ?????????????????????????????????????????????????? | | ?????????????????????????????????????????????????? | | ?????????????????????????????????????????????????? | | ?????????????????????????????????????????????????? | | ?????????????????????????????????????????????????? | | ?????????????????????????????????????????????????? | | ?????????????????????????????????????????????????? | +----------------------------------------------------+ Best States ------------- Heat Dissipation 81 Coolant Potential 65 Energy Generation 34 Energy Capacity 360 Matter Stores 300 Matter Capacity 300 Sight Range 16 Robot Scan Range 15 Terrain Scan Range 20 Terrain Scan Density 10 Additional Mass Support 9 Armor Coverage 750 Resistance: KI 20 Core Shielding 20 Weapon Cycling 25 Evasion (%) 55 Core Analysis 9 Recoil Reduction 3 Offensive Hacking 10 Defensive Hacking 10 Authchip Count 3 Item Schematics ----------------- Plasma Cutter | -7/Factory | Extracted Imp. Sensor Array | -7/Factory | Extracted Hardlight Generator | -7/Factory | Extracted Kinecellerator | -7/Factory | Extracted Med. Armor Plating | -7/Factory | Extracted Microactuators | -7/Factory | Extracted Prc. Grenade Launcher | -7/Factory | Extracted Robot Schematics ------------------ None Fabricated ------------ Nothing Repaired ---------- Nothing Studied --------- None Alien Tech Used ----------------- None Achievements -------------- Fishing Tech Challenges ------------ None Game ------ Seed MultireflexSpreadTorch Manual? 0 Play Time 01:51:25 Cumulative 250.8 hours Start 2026.08.21 @ 15:54:05 End 2026.08.22 @ 00:51:47 Sessions 2 Manual Loads 0 Difficulty Rogue Special Mode None Game No. 142 Rogue 142 Adventurer 0 Explorer 0 Win Type - Total 5 Types 5/0/0/0/0/0/0/0/0/0 Lore% 80 Gallery% 69 Achievement% 60 Wizard Run 0 Options --------- Layout 1 ASCII 0 Keyboard 0 Movement Numpad Keybinds 0 Fullscreen 1 Font 24/Smallcaps Map View 50x35 Zoom Use 0% Tactical HUD 1 Map Filters NONE Filters NONE Steam 1 RUN: 2944fff9-ced3-4c1f-afb0-10b528cd441c